bitfinex/quotes_ETHUSD_20251111
["timestamp","ask_amount","ask_price","bid_price","bid_amount"]
[1762858303411,4.71691673,3557.7,3557.6,1.763904]
[1762858303725,4.71691673,3557.7,3557.6,1.335204]
[1762858303930,5.21691673,3557.7,3557.6,1.335204]
[1762858307204,4.71691673,3557.7,3557.6,1.763904]
[1762858309497,4.71691673,3557.7,3557.6,1.335204]
[1762858311440,4.71691673,3557.7,3557.6,1.763904]
[1762858312310,4.71691673,3557.7,3557.6,1.335204]
[1762858313807,4.07091673,3557.7,3557.6,1.335204]
[1762858314002,4.71691673,3557.7,3557.6,1.763904]
[1762858317026,4.71691673,3557.7,3557.6,1.335204]
[1762858317546,5.21691673,3557.7,3557.6,1.335204]
[1762858320350,5.21611673,3557.7,3557.6,1.335204]
[1762858322644,4.71611673,3557.7,3557.6,1.335204]
[1762858322954,4.71611673,3557.7,3557.6,1.763904]
[1762858323953,4.71611673,3557.7,3557.6,1.335204]
[1762858324327,4.07011673,3557.7,3557.6,1.335204]
[1762858324529,0.002,3558.1,3557.7,0.405504]
[1762858324734,0.002,3558.1,3557.8,0.5818944]
[1762858324735,3.45559855,3558.0,3557.8,0.5818944]
[1762858325119,3.45559855,3558.0,3557.9,0.8574]
[1762858325779,0.645,3558.0,3557.9,0.8574]
[1762858326519,3.45556773,3558.0,3557.9,0.8574]
[1762858327235,3.45556773,3558.0,3557.9,0.4287]
[1762858328154,3.31080473,3557.7,3557.6,0.501]
[1762858328345,4.45450473,3557.7,3557.6,0.501]
[1762858328546,4.92980473,3557.7,3557.6,0.906504]
[1762858330866,5.71421673,3557.7,3557.6,0.501]
[1762858331080,6.18951673,3557.7,3557.6,0.501]
[1762858331875,6.55788087,3557.7,3557.6,0.501]
[1762858332379,6.18951673,3557.7,3557.6,0.501]
[1762858333850,5.71421673,3557.7,3557.6,0.501]
[1762858334050,5.21551673,3557.7,3557.6,0.501]
[1762858335177,4.71551673,3557.7,3557.6,0.001]
[1762858337550,5.21421673,3557.7,3557.6,0.001]
[1762858338155,2.31080473,3557.7,3557.6,0.835204]
[1762858338360,2.95580473,3557.7,3557.6,0.835204]
[1762858341993,2.95580473,3557.7,3557.6,0.406504]
[1762858344193,2.95500473,3557.7,3557.6,0.406504]
[1762858344798,3.45370473,3557.7,3557.6,0.406504]
[1762858345279,3.95370473,3557.7,3557.6,0.406504]
[1762858345456,3.95370473,3557.7,3557.6,0.001]
[1762858345660,13.15465785,3557.7,3557.6,0.001]
[1762858346309,9.41563729,3557.7,3557.6,0.001]
[1762858346907,13.15465785,3557.7,3557.6,0.001]
[1762858347338,9.41563729,3557.7,3557.6,0.001]
[1762858349511,13.15465785,3557.7,3557.6,0.001]
[1762858349714,9.41563729,3557.7,3557.6,0.001]
[1762858350126,9.41763729,3557.7,3557.6,0.001]
[1762858352070,9.53028082,3557.7,3557.6,0.001]
[1762858353466,13.26930138,3557.7,3557.6,0.001]
[1762858354449,4.97861182,3557.2,3557.1,1e-08]
[1762858354774,13.47001708,3557.2,3557.1,1e-08]
[1762858355074,14.41831708,3557.2,3557.1,1e-08]
[1762858356669,10.67929652,3557.2,3557.1,1e-08]
[1762858357166,5.46371182,3557.2,3557.1,1e-08]
[1762858357392,3.79629982,3557.2,3557.1,1e-08]
[1762858357537,3.95619982,3557.2,3557.1,0.95280001]
[1762858357737,3.45619982,3557.2,3557.1,0.95280001]
[1762858359579,3.45619982,3557.2,3557.1,0.52410001]
[1762858360040,3.45619982,3557.2,3557.1,0.95280001]
[1762858360676,3.95619982,3557.2,3557.1,0.52410001]
[1762858361242,3.95619982,3557.2,3557.1,0.95280001]
[1762858362363,2.81119982,3557.2,3557.1,0.95280001]
[1762858362562,0.645,3557.2,3557.1,0.95280001]
[1762858362776,3.45619982,3557.2,3557.1,0.95280001]
[1762858363594,3.45619982,3557.2,3557.1,0.92169001]
[1762858363947,3.45619982,3557.2,3557.1,0.49299001]
[1762858364154,2.81140064,3557.0,3556.4,0.405504]
[1762858364456,3.45643692,3556.9,3556.8,0.803104]
[1762858364661,3.45643692,3556.9,3556.8,0.405504]
[1762858364913,3.45643692,3556.9,3556.8,0.803104]
[1762858365117,3.45643692,3556.9,3556.8,1.200704]
[1762858367532,3.45643692,3556.9,3556.8,1.201704]
[1762858368298,3.45563692,3556.9,3556.8,1.201704]
[1762858369386,0.6442,3556.9,3556.8,1.201704]
[1762858370226,3.45563692,3556.9,3556.8,0.804104]
[1762858370429,0.6442,3556.9,3556.8,1.201704]
[1762858370614,3.45563692,3556.9,3556.8,0.804104]
[1762858370928,3.95563692,3556.9,3556.8,0.406504]
[1762858371623,3.95563692,3556.9,3556.8,0.001]
[1762858371829,4.44413692,3556.9,3556.8,0.001]
[1762858372807,4.90733692,3556.9,3556.8,0.001]
[1762858373347,5.08803692,3556.9,3556.8,0.001]
[1762858373755,6.34774892,3556.9,3556.8,0.001]
[1762858381755,4.57114892,3556.9,3556.8,0.001]
[1762858382029,0.645,3556.9,3556.8,0.7962]
[1762858382221,2.81325095,3557.2,3556.9,0.405504]
[1762858382441,2.81325095,3557.2,3557.1,0.4619]
[1762858382758,3.45825095,3557.2,3557.1,0.4619]
[1762858382920,3.45825095,3557.2,3557.1,0.8595]
[1762858384316,0.647,3557.2,3557.1,0.8595]
[1762858385456,3.45819982,3557.2,3557.1,0.8595]
[1762858386315,2.81319982,3557.2,3557.1,0.8595]
[1762858386522,3.45819982,3557.2,3557.1,0.8595]
[1762858388785,0.002,3557.2,3557.1,5.17597717]
[1762858388996,0.647,3557.2,3557.1,5.17597717]
[1762858389178,0.647,3557.2,3557.1,1.43695661]
[1762858392256,0.6462,3557.2,3557.1,1.43695661]
[1762858394077,0.6462,3557.2,3557.1,4.24823546]
[1762858394283,0.6462,3557.2,3557.1,1.43695661]
[1762858396764,0.6462,3557.2,3557.1,4.24823546]
[1762858397162,0.6462,3557.2,3557.1,7.98725602]
[1762858397163,0.0012,3557.2,3557.1,7.98725602]
[1762858398282,0.0012,3557.2,3557.1,9.24696802]
[1762858398485,0.0012,3557.2,3557.1,9.89196802]
[1762858398865,0.0012,3557.2,3557.1,9.57778402]
[1762858399064,0.002,3557.6,3557.5,3.21646675]
[1762858399278,0.002,3557.6,3557.5,7.64165522]
[1762858399477,0.002,3557.6,3557.5,8.03925522]
[1762858405825,0.002,3557.6,3557.5,4.42518847]
[1762858406038,0.002,3557.6,3557.5,0.60275191]
[1762858406316,0.9561,3557.6,3557.1,0.17195261]
[1762858406482,0.4276,3557.3,3557.1,0.17195261]
[1762858406884,0.4824,3557.2,3557.1,0.17195261]
[1762858407084,0.4824,3557.2,3557.1,0.57745661]
[1762858409113,0.645,3557.5,3557.1,0.97505661]
[1762858409322,0.645,3557.5,3557.2,0.37874131]
[1762858410187,0.002,3557.6,3557.5,0.405504]
[1762858410514,0.647,3557.6,3557.5,0.803104]
[1762858411014,1.1299,3557.6,3557.3,0.405504]
[1762858411325,1.1299,3557.6,3557.2,3.21668002]
[1762858411326,0.647,3557.6,3557.2,3.21668002]
[1762858411614,0.647,3557.6,3557.5,0.803104]
[1762858412602,0.647,3557.6,3557.5,0.405504]
[1762858412812,0.647,3557.6,3557.5,0.803104]
[1762858413141,0.647,3557.6,3557.5,0.405504]
[1762858413624,0.647,3557.6,3557.1,3.04752567]
[1762858413625,3.94083406,3557.6,3557.1,0.0643]
[1762858413913,0.645,3557.5,3557.2,0.405504]
[1762858414078,0.645,3557.5,3557.3,0.36786804]
[1762858414419,0.645,3557.5,3557.4,0.3976]
[1762858415719,0.645,3557.5,3557.3,0.36786804]
[1762858415893,0.4829,3557.4,3557.3,0.36786804]
[1762858416241,0.4821,3557.4,3556.9,0.406504]
[1762858416400,0.4276,3557.3,3556.9,0.406504]
[1762858416908,0.4276,3557.3,3556.9,3.21788347]
[1762858417313,0.4276,3557.3,3557.1,0.405504]
[1762858417525,0.002,3557.6,3557.3,0.405504]
[1762858417727,0.645,3557.5,3557.3,6.64139989]
[1762858417929,0.645,3557.5,3557.3,7.03979989]
[1762858418235,0.645,3557.5,3557.4,0.803904]
[1762858418643,0.645,3557.5,3557.4,3.61494577]
[1762858418853,0.645,3557.5,3557.4,5.04479347]
[1762858421275,0.645,3557.5,3557.4,1.8353517]
[1762858421925,1.1279,3557.5,3557.4,0.405504]
[1762858422748,1.5991,3557.5,3557.4,0.405504]
[1762858424369,0.645,3557.5,3557.4,0.405504]
[1762858424671,0.645,3557.5,3557.4,0.803904]
[1762858424833,0.002,3557.6,3557.4,0.803904]
[1762858425062,0.002,3557.6,3557.5,0.3984]
[1762858425262,0.647,3557.6,3557.5,1.42333006]
[1762858425682,0.647,3557.6,3557.5,1.82883406]
[1762858425888,0.647,3557.6,3557.5,1.202304]
[1762858426090,0.647,3557.6,3557.5,0.803904]
[1762858427081,0.002,3557.6,3557.5,0.803904]
[1762858427381,0.647,3557.6,3557.5,0.803904]
[1762858432018,0.002,3557.6,3557.5,0.803904]
[1762858432303,0.002,3557.6,3557.5,7.90081737]
[1762858433059,0.002,3557.6,3557.5,9.16052937]
[1762858436561,0.002,3557.6,3557.5,9.80552937]
[1762858440228,0.0012,3557.6,3557.5,9.80552937]
[1762858441126,0.0012,3557.6,3557.5,9.40712937]
[1762858441354,0.0012,3557.6,3557.5,8.36372937]
[1762858441543,0.4765,3557.6,3557.5,3.27367681]
[1762858441751,0.9439,3557.6,3557.5,3.27367681]
[1762858442045,0.9439,3557.6,3557.5,3.67918081]
[1762858443136,0.0012,3557.6,3557.5,3.67918081]
[1762858443325,0.0012,3557.6,3557.5,4.07758081]
[1762858443627,0.0012,3557.6,3557.5,3.67918081]
[1762858443832,0.4765,3557.6,3557.5,3.67918081]
[1762858445136,0.0012,3557.6,3557.5,3.67918081]
[1762858446130,0.0012,3557.6,3557.5,4.07758081]
[1762858446306,0.0012,3557.6,3557.5,4.47598081]
[1762858446912,0.0012,3557.6,3557.5,5.73569281]
[1762858450908,0.0012,3557.6,3557.5,6.37969281]
[1762858453204,0.4765,3557.6,3557.5,4.93889281]
[1762858454522,0.9439,3557.6,3557.5,4.93889281]
[1762858457548,0.4765,3557.6,3557.5,4.93889281]
[1762858459158,0.0012,3557.6,3557.5,5.33729281]
[1762858460629,0.0012,3557.6,3557.5,5.73569281]
[1762858460930,0.0012,3557.6,3557.5,13.20728273]
[1762858462467,0.0012,3557.6,3557.5,9.07308777]
[1762858462689,0.0012,3557.6,3557.5,8.67468777]
[1762858463252,0.0012,3557.6,3557.5,9.07308777]
[1762858464161,0.0004,3557.6,3557.5,9.07308777]
[1762858468687,0.0004,3557.6,3557.5,12.80888273]
[1762858470363,0.0004,3557.6,3557.5,13.20728273]
[1762858472694,0.0004,3557.6,3557.5,12.80888273]
[1762858472983,0.0004,3557.6,3557.5,8.67468777]
[1762858473175,0.4565,3557.6,3557.5,8.67468777]
[1762858474878,0.4565,3557.6,3557.5,8.67568777]
[1762858475257,0.0004,3557.6,3557.5,9.07408777]
[1762858475455,0.0004,3557.6,3557.5,12.80988273]
[1762858475788,0.0004,3557.6,3557.5,13.20828273]
[1762858477998,0.0004,3557.6,3557.5,13.85228273]
[1762858480090,0.0004,3557.6,3557.5,10.11648777]
[1762858480602,0.0004,3557.6,3557.5,9.71808777]
[1762858480805,0.4565,3557.6,3557.5,9.31968777]
[1762858481300,0.0004,3557.6,3557.5,10.36788777]
[1762858485929,0.9191,3557.6,3557.5,9.32548777]
[1762858486128,0.9191,3557.6,3557.5,5.58969281]
[1762858486332,0.0004,3557.6,3557.5,8.67568777]
[1762858486827,0.4565,3557.6,3557.5,8.67568777]
[1762858487028,0.9191,3557.6,3557.5,8.67568777]
[1762858488214,0.9183,3557.6,3557.5,8.67568777]
[1762858492212,0.9203,3557.6,3557.5,8.67568777]
[1762858497534,0.4577,3557.6,3557.5,8.67568777]
[1762858498467,0.002,3557.6,3557.5,8.67568777]
[1762858499020,0.491,3557.6,3557.5,8.67568777]
[1762858499517,0.9449,3557.6,3557.5,8.67568777]
[1762858502050,0.491,3557.6,3557.5,8.67568777]
[1762858502348,0.002,3557.6,3557.5,9.07448777]
[1762858503758,0.002,3557.6,3557.5,9.26168777]
[1762858504751,0.002,3557.6,3557.5,12.99748273]
[1762858504921,0.002,3557.6,3557.5,13.39628273]
[1762858505449,0.002,3557.6,3557.5,12.99748273]
[1762858506583,0.002,3557.6,3557.5,13.39628273]
[1762858506864,0.002,3558.0,3557.9,4.47586272]
[1762858507162,0.4559,3558.8,3558.3,4.47554677]
[1762858507469,0.4559,3558.8,3558.3,12.34593669]
[1762858508023,1e-08,3558.9,3558.8,3.20873593]
[1762858508324,0.002,3559.6,3559.5,3.21488734]
[1762858508523,0.002,3559.7,3559.6,3.21480841]
[1762858508722,0.01,3559.9,3559.8,4.47436258]
[1762858508966,0.01,3559.9,3559.8,12.3447525]
[1762858509121,0.4539,3560.8,3560.4,3.21417718]
[1762858509327,0.185,3561.0,3560.4,11.28806163]
[1762858509525,0.4539,3560.7,3560.4,11.28806163]
[1762858510763,0.6389,3561.0,3560.4,11.68686163]
[1762858511119,0.6389,3561.0,3560.4,12.14076163]
[1762858512260,0.0012,3560.5,3560.4,12.14076163]
[1762858512764,0.0012,3560.5,3560.4,13.18356163]
[1762858513143,0.0012,3560.5,3560.4,14.44327363]
[1762858516386,0.01,3561.9,3560.4,14.44327363]
[1762858516387,0.185,3561.4,3560.8,2.80835767]
[1762858516605,0.185,3561.7,3561.4,0.405504]
[1762858516877,0.185,3561.7,3561.6,6.94902582]
[1762858517235,0.674,3561.7,3561.6,7.40292582]
[1762858517642,1.1279,3561.7,3561.6,7.40292582]
[1762858518895,1.1279,3561.7,3561.6,4.59519896]
[1762858519073,2.99163956,3563.0,3561.9,0.405504]
[1762858519074,0.6389,3562.8,3561.9,0.405504]
[1762858519285,0.489,3562.0,3561.9,3.21299438]
[1762858519584,0.489,3562.0,3561.9,7.59278934]
[1762858519788,0.489,3562.0,3561.9,9.32827033]
[1762858519964,0.4539,3563.5,3562.8,0.405504]
[1762858520287,1.1379,3562.9,3562.8,6.94808014]
[1762858520499,1.1379,3562.9,3562.8,4.14129896]
[1762858520786,1.1379,3562.9,3562.8,7.40198014]
[1762858522045,1.1379,3562.9,3562.8,4.59519896]
[1762858522246,1.1379,3562.9,3562.8,7.40198014]
[1762858522898,1.1379,3562.9,3562.8,7.08120191]
[1762858524049,0.01,3562.9,3562.8,8.13451364]
[1762858524250,0.01,3562.9,3562.8,9.39422564]
[1762858524450,0.01,3562.9,3562.8,9.79302564]
[1762858525064,0.01,3562.9,3562.8,9.39422564]
[1762858526381,0.012,3562.9,3562.8,9.39422564]
[1762858529514,0.6906,3562.9,3562.8,5.97920891]
[1762858529696,0.6906,3562.9,3562.8,10.03922564]
[1762858529697,1.1691,3562.9,3562.8,10.03922564]
[1762858532818,1.1691,3562.9,3562.8,9.39422564]
[1762858533121,1.1691,3562.9,3562.8,10.03922564]
[1762858534277,0.6906,3562.9,3562.8,10.03922564]
[1762858534477,0.4918,3562.9,3562.8,10.03922564]
[1762858535894,0.6906,3562.9,3562.8,10.03922564]
[1762858536203,1.1683,3562.9,3562.8,10.03922564]
[1762858536608,0.6898,3562.9,3562.8,10.03922564]
[1762858537228,1.143,3562.9,3561.0,2.87328365]
[1762858537382,0.4538,3562.0,3561.9,0.001]
[1762858537723,0.907,3562.0,3561.9,0.001]
[1762858537926,3.71441156,3562.0,3561.9,0.001]
[1762858538097,0.907,3562.0,3561.9,0.001]
[1762858539383,0.4538,3562.0,3561.9,0.001]
[1762858539639,0.645,3562.7,3561.9,0.34260167]
[1762858539788,0.4532,3562.4,3562.0,0.405504]
[1762858539982,0.4532,3562.4,3562.2,0.405504]
[1762858540208,0.4532,3562.4,3562.0,0.405504]
[1762858540209,0.4538,3562.1,3562.0,0.405504]
[1762858540588,0.907,3562.1,3562.0,0.405504]
[1762858541701,0.907,3562.1,3562.0,3.21291556]
[1762858541902,0.4538,3562.1,3562.0,4.15656422]
[1762858542532,0.907,3562.1,3562.0,4.15656422]
[1762858543508,0.907,3562.1,3562.0,0.405504]
[1762858547484,0.907,3562.1,3562.0,3.21291556]
[1762858549475,0.4538,3562.1,3562.0,3.21291556]
[1762858552582,0.907,3562.1,3562.0,0.405504]
[1762858553844,0.907,3562.1,3562.0,3.21291556]
[1762858554044,0.907,3562.1,3562.0,0.405504]
[1762858554243,1.552,3562.1,3561.9,0.001]
[1762858554446,3.79661156,3562.0,3561.9,0.001]
[1762858557558,8.47134029,3562.0,3561.9,0.001]
[1762858557758,5.05632356,3562.0,3561.9,0.001]
[1762858559985,0.4892,3562.0,3561.9,0.001]
[1762858560151,3.29581156,3562.0,3561.9,0.001]
[1762858560551,0.0352,3562.0,3561.9,0.001]
[1762858560784,0.5325,3562.0,3561.9,0.001]
[1762858561083,3.33991156,3562.0,3561.9,0.001]
[1762858561856,3.83991156,3562.0,3561.9,0.001]
[1762858563090,5.09962356,3562.0,3561.9,0.001]
[1762858564698,3.83991156,3562.0,3561.9,0.001]
[1762858564897,3.33991156,3562.0,3561.9,0.001]
[1762858566099,3.83991156,3562.0,3561.9,0.001]
[1762858566267,1.0325,3562.0,3561.9,0.001]
[1762858566594,0.5325,3562.0,3561.9,0.001]
[1762858566760,3.33991156,3562.0,3561.9,0.001]
[1762858567159,3.33991156,3562.0,3561.5,0.001]
[1762858567160,7.98245559,3561.6,3561.5,0.001]
[1762858567368,9.03345559,3561.6,3561.5,0.001]
[1762858567671,9.53075559,3561.6,3561.5,0.001]
[1762858568040,6.11573886,3561.6,3561.5,0.001]
[1762858568157,9.53075559,3561.6,3561.5,0.001]
[1762858568790,3.30804223,3561.2,3561.1,0.001]
[1762858568990,3.97974223,3561.2,3561.1,0.001]
[1762858569194,4.47704223,3561.2,3561.1,0.001]
[1762858570321,5.73675423,3561.2,3561.1,0.001]
[1762858580930,3.97974223,3561.2,3561.1,0.001]
[1762858581132,0.646,3561.2,3561.1,0.4948]
[1762858581629,0.646,3561.2,3561.1,0.900304]
[1762858583997,0.646,3561.2,3561.1,1.545704]
[1762858584203,0.6452,3561.2,3561.1,1.545704]
[1762858584599,0.6452,3561.2,3561.1,1.091904]
[1762858584800,0.6452,3561.2,3561.1,0.900304]
[1762858585092,3.45324223,3561.2,3561.1,0.900304]
[1762858585297,3.87994223,3561.2,3561.1,0.406504]
[1762858586231,1.0719,3561.2,3561.1,0.406504]
[1762858586605,0.6452,3561.2,3561.1,0.406504]
[1762858586808,3.88064223,3561.2,3561.1,0.406504]
[1762858587014,4.38064223,3561.2,3561.1,0.406504]
[1762858587329,4.38064223,3561.2,3561.1,0.867804]
[1762858587330,0.6452,3561.2,3561.1,0.867804]
[1762858587745,3.91084223,3561.2,3561.1,0.001]
[1762858588956,4.41084223,3561.2,3561.1,0.001]
[1762858590306,1.6028,3561.2,3561.1,0.001]
[1762858590511,0.5,3561.6,3561.2,0.405504]
[1762858590744,0.646,3561.5,3561.2,0.866804]
[1762858591048,0.646,3561.5,3561.4,4.13496753]
[1762858591351,0.646,3561.5,3561.4,0.866804]
[1762858591536,0.646,3561.5,3561.3,0.405504]
[1762858591913,0.646,3561.5,3561.4,0.866804]
[1762858592410,3.90890569,3561.5,3561.4,0.405504]
[1762858592615,4.37590569,3561.5,3561.4,0.405504]
[1762858593145,4.87590569,3561.5,3561.4,0.405504]
[1762858593347,2.80803945,3561.3,3561.1,0.001]
[1762858593550,1.1011,3561.2,3561.1,0.001]
[1762858594820,0.646,3561.2,3561.1,0.867804]
[1762858595421,0.646,3561.2,3561.1,1.87402837]
[1762858597856,0.646,3561.2,3561.1,1.527304]
[1762858599576,0.646,3561.2,3561.1,8.06488861]
[1762858599757,0.002,3561.5,3561.4,2.80788453]
[1762858599959,0.648,3561.5,3561.4,6.99864806]
[1762858600270,0.648,3561.5,3561.4,7.46764806]
[1762858600466,0.648,3561.5,3561.4,5.74703256]
[1762858600667,0.648,3561.5,3561.4,7.46764806]
[1762858601649,0.648,3561.5,3561.4,4.65976353]
[1762858602071,0.648,3561.5,3561.4,7.46764806]
[1762858605103,0.002,3561.5,3561.4,7.87315206]
[1762858606985,0.002,3561.5,3561.4,4.14368853]
[1762858607693,0.002,3561.5,3561.4,5.29555096]
[1762858608296,0.0012,3561.5,3561.4,5.29555096]
[1762858621733,0.4501,3561.5,3561.4,5.28682996]
[1762858622031,0.0012,3561.5,3561.4,6.94285206]
[1762858622233,0.0012,3561.5,3561.4,7.44165206]
[1762858622430,0.4504,3561.5,3561.4,6.94285206]
[1762858622731,0.0012,3561.5,3561.4,6.94285206]
[1762858623330,0.0012,3561.5,3561.4,7.44165206]
[1762858623538,0.0012,3561.5,3561.4,9.01581438]
[1762858625720,0.0012,3561.5,3561.4,5.72332985]
[1762858625925,0.0012,3561.5,3561.4,8.53121438]
[1762858629151,0.0012,3561.5,3561.4,8.53221438]
[1762858629446,0.0012,3561.5,3561.4,9.01681438]
[1762858630013,0.0012,3561.5,3561.4,9.66181438]
[1762858630817,0.0012,3561.5,3561.4,9.17721438]
[1762858631055,0.0012,3561.5,3561.4,5.44775085]
[1762858631246,0.0012,3561.5,3561.4,5.93235085]
[1762858632255,0.0004,3561.5,3561.4,5.93235085]
[1762858635428,0.0004,3561.5,3561.4,4.80275085]
[1762858635633,0.0004,3561.5,3561.4,4.30395085]
[1762858635953,0.4493,3561.5,3561.4,4.30395085]
[1762858636138,0.9241,3561.5,3561.4,3.21438853]
[1762858636534,0.9241,3561.5,3561.4,6.94385206]
[1762858636719,0.4493,3561.5,3561.4,6.94385206]
[1762858636920,0.4493,3561.5,3561.4,4.13596753]
[1762858637155,0.4493,3561.5,3561.4,6.94385206]
[1762858637356,0.4493,3561.5,3561.4,4.13596753]
[1762858638059,0.4493,3561.5,3561.4,6.94385206]
[1762858639955,0.4493,3561.5,3561.4,4.13596753]
[1762858640581,0.4493,3561.5,3561.4,6.94385206]
[1762858640724,0.9241,3561.5,3561.4,0.406504]
[1762858641437,0.9241,3561.5,3561.4,3.21438853]
[1762858642360,0.9241,3561.5,3561.4,0.406504]
[1762858642548,0.4493,3561.5,3561.4,3.21438853]
[1762858642953,0.0004,3561.5,3561.4,7.44265206]
[1762858643534,0.0004,3561.5,3561.4,6.94385206]
[1762858644929,0.4493,3561.5,3561.4,6.94385206]
[1762858645128,0.4493,3561.5,3561.4,4.13596753]
[1762858645430,0.9241,3561.5,3561.4,4.13596753]
[1762858645655,0.9241,3561.5,3561.4,6.94385206]
[1762858645864,0.9241,3561.5,3561.4,4.13596753]
[1762858646046,0.9241,3561.5,3561.4,6.94385206]
[1762858646377,0.4493,3561.5,3561.4,6.94385206]
[1762858646929,0.4493,3561.5,3561.4,3.21438853]
[1762858647174,0.4421,3561.5,3561.4,3.21438853]
[1762858647649,0.8926,3561.5,3561.4,3.21438853]
[1762858647851,0.8926,3561.5,3561.4,0.406504]
[1762858648487,0.8926,3561.5,3561.4,3.21438853]
[1762858648668,0.8926,3561.5,3561.4,0.406504]
[1762858650986,0.8926,3561.5,3561.4,3.21438853]
[1762858652187,0.8926,3561.5,3561.4,0.406504]
[1762858652389,0.8926,3561.5,3561.4,0.001]
[1762858655277,4.20040569,3561.5,3561.4,0.001]
[1762858656200,4.19960569,3561.5,3561.4,0.001]
[1762858657603,0.4413,3561.5,3561.4,0.001]
[1762858657802,0.644,3561.6,3561.4,0.001]
[1762858658203,0.4658,3561.5,3561.4,0.001]
[1762858659068,0.644,3561.6,3561.4,0.479]
[1762858659390,0.644,3561.6,3561.4,0.001]
[1762858659391,0.4658,3561.5,3561.4,0.001]
[1762858660105,0.9163,3561.5,3561.4,0.001]
[1762858660671,0.9163,3561.5,3561.4,2.80888453]
[1762858660672,0.4658,3561.5,3561.4,2.80888453]
[1762858660871,0.644,3561.6,3561.4,3.28685705]
[1762858661914,0.644,3561.6,3561.4,0.479]
[1762858662338,0.002,3561.5,3561.4,3.69238593]
[1762858663035,0.002,3561.5,3561.4,0.884504]
[1762858663924,0.002,3561.5,3561.4,3.69238853]
[1762858664723,0.002,3561.5,3561.4,0.884504]
[1762858664923,0.002,3561.5,3561.4,3.69238853]
[1762858665134,0.002,3561.5,3561.4,0.884504]
[1762858665449,0.002,3561.5,3561.4,3.69238853]
[1762858668821,0.002,3561.5,3561.4,4.18828853]
[1762858669022,0.002,3561.5,3561.4,4.88802148]
[1762858669357,0.002,3561.5,3561.4,1.58423695]
[1762858669522,0.002,3561.5,3561.4,3.69238853]
[1762858670548,0.002,3561.5,3561.4,0.884504]
[1762858670841,0.002,3561.5,3561.4,3.69238853]
[1762858671253,0.002,3561.5,3561.4,0.884504]
[1762858671841,0.4718,3561.5,3561.4,0.406504]
[1762858673548,0.9223,3561.5,3561.4,0.406504]
[1762858673853,0.4718,3561.5,3561.4,0.406504]
[1762858674958,0.4718,3561.5,3561.4,3.21438853]
[1762858675258,0.9223,3561.5,3561.4,0.406504]
[1762858678088,0.4718,3561.5,3561.4,0.406504]
[1762858678250,0.002,3561.5,3561.4,3.21438853]
[1762858678456,0.002,3561.5,3561.4,3.68538853]
[1762858679938,0.002,3561.5,3561.4,8.28763231]
[1762858680149,0.0012,3561.5,3561.4,8.28763231]
[1762858680954,0.0012,3561.5,3561.4,5.47974778]
[1762858681138,0.0012,3561.5,3561.4,0.406504]
[1762858681139,0.4951,3561.5,3561.4,0.406504]
[1762858681338,0.9334,3561.5,3561.4,0.406504]
[1762858682380,1.5774,3561.5,3561.4,0.406504]
[1762858688497,1.5774,3561.5,3561.4,0.001]
[1762858690397,1.1391,3561.5,3561.4,0.001]
[1762858690778,1.1391,3561.5,3561.4,0.472]
[1762858690779,0.6452,3561.5,3561.4,0.472]
[1762858690978,1.1177,3561.5,3561.4,0.001]
[1762858691180,1.577,3561.5,3561.4,0.001]
[1762858694614,1.1177,3561.5,3561.4,0.001]
[1762858697678,1.577,3561.5,3561.4,0.001]
[1762858699911,4.88480569,3561.5,3561.4,0.001]
[1762858700485,1.6177,3561.5,3561.4,0.001]
[1762858700711,1.1177,3561.5,3561.4,0.001]
[1762858701305,1.577,3561.5,3561.4,0.001]
[1762858702327,4.38480569,3561.5,3561.4,0.001]
[1762858702623,1.1177,3561.5,3561.4,0.001]
[1762858704198,1.1169,3561.5,3561.4,0.001]
[1762858705228,0.6444,3561.5,3561.4,0.472]
[1762858706219,0.6444,3561.5,3561.4,4.17728853]
[1762858706431,0.6444,3561.5,3561.4,5.23623669]
[1762858707208,1.5606,3561.5,3561.4,0.001]
[1762858708715,0.6444,3561.5,3561.4,3.69378853]
[1762858708919,0.6444,3561.5,3561.4,4.18568853]
[1762858709740,0.6444,3561.5,3561.4,7.9148901]
[1762858710847,0.6444,3561.5,3561.4,4.18568853]
[1762858711846,0.6444,3561.5,3561.4,1.9582945]
[1762858712146,0.6444,3561.5,3561.4,4.76617903]
[1762858712525,0.6444,3561.5,3561.4,5.25807903]
[1762858713645,0.6444,3561.5,3561.4,2.4501945]
[1762858713842,0.6444,3561.5,3561.4,1.9582945]
[1762858714007,0.6444,3561.5,3561.4,4.76617903]
[1762858714212,0.6444,3561.5,3561.4,8.9872806]
[1762858714740,0.0004,3561.5,3561.4,8.9872806]
[1762858718349,0.0004,3561.5,3561.4,4.76617903]
[1762858721643,0.0004,3561.5,3561.4,8.9872806]
[1762858723248,0.0004,3561.5,3561.4,9.6312806]
[1762858726287,0.0004,3561.5,3561.4,10.8909926]
[1762858728240,0.0016,3561.9,3561.8,3.6924732]
[1762858728498,0.0016,3561.9,3561.8,8.07168784]
[1762858728646,0.0016,3561.9,3561.8,8.56358784]
[1762858728856,0.0016,3561.9,3561.8,8.67605085]
[1762858729369,0.0016,3561.9,3561.8,7.70475085]
[1762858729753,0.0016,3561.9,3561.8,8.18415085]
[1762858734101,0.0016,3561.9,3561.8,7.70475085]
[1762858735583,0.0016,3561.9,3561.8,8.63685085]
[1762858744531,0.0016,3561.9,3561.8,7.70475085]
[1762858744736,0.4571,3561.9,3561.8,7.05473778]
[1762858745501,0.4571,3561.9,3561.8,7.05573778]
[1762858747315,0.9179,3561.9,3561.8,7.05573778]
[1762858749677,0.0016,3561.9,3561.8,7.05573778]
[1762858749879,0.0016,3561.9,3561.8,8.52127731]